{"text_format":"3","workbook":"xlsx","n_sheets":3,"sheets":["Výkaz mesačného rozpočtu","Mesačné výdavky","Ďalšie údaje"],"not_rendered":{"charts":1,"external_links":1,"defined_names":4,"pivot_tables":2},"read":"whole","date_system":"1900"}

{"sheet":"Výkaz mesačného rozpočtu","index":0,"n_rows":34,"n_cols":14,"rows_kept":34,"merged":[[7,1,10,1],[7,5,10,5],[7,6,10,6],[12,1,16,1],[12,5,16,5],[12,6,16,6]]}
[null,"Prehľad rozpočtu",{"$nulls":7},"Súhrn rozpočtu"]
[null,"Zostatok"]
[null,"Predpokladaný zostatok","(predpokladané mínus náklady)",{"$nulls":3},{"$f":"D17-SUM(PodrobnostiRozpočtu[Predpokladané náklady])","v":{"v":1585,"d":"1,585 EUR"}}]
[null,"Skutočný zostatok ","(skutočné mínus náklady)",{"$nulls":3},{"$f":"D11-SUM(PodrobnostiRozpočtu[Skutočné náklady])","v":{"v":1740,"d":"1,740 EUR"}}]
[null,"Rozdiel","(skutočné mínus predpokladané)",{"$nulls":3},{"$f":"G4-G3","v":{"v":155,"d":"155 EUR"}}]
[]
[null,"Príjmy",{"$nulls":3},"Výdavky",{"$nulls":3},"Kliknite pravým tlačidlom myši na kontingenčnú tabuľku nižšie a kliknutím na položku Obnoviť ju aktualizujte."]
[null,"SKUTOČNÉ","Príjem 1",{"v":5800,"d":"5,800 EUR"},null,"SKUTOČNÉ",{"$f":"SUM(PodrobnostiRozpočtu[Skutočné náklady])","v":{"v":7860,"d":"7,860 EUR"}}]
[null,null,"Príjem 2",{"v":2300,"d":"2,300 EUR"},{"$nulls":6},"Kategória","Predpokladané náklady ","Skutočné náklady ","Rozdiel "]
[null,null,"Osobitné príjmy",{"v":1500,"d":"1,500 EUR"},{"$nulls":6},"Bývanie",{"v":2830,"d":"2,830 EUR"},{"v":2702,"d":"2,702 EUR"},{"v":128,"d":"128 EUR"}]
[null,null,"Celkové príjmy",{"$f":"SUM(D8:D10)","v":{"v":9600,"d":"9,600 EUR"}}]
[{"$nulls":10},"Dane",{"v":300,"d":"300 EUR"},{"v":300,"d":"300 EUR"},{"v":0,"d":"0 EUR"}]
[null,"PREDPOKLADANÉ",{"$nulls":3},"PREDPOKLADANÉ",{"$f":"SUM(PodrobnostiRozpočtu[Predpokladané náklady])","v":{"v":7915,"d":"7,915 EUR"}}]
[null,null,"Príjem 1",{"v":6000,"d":"6,000 EUR"},{"$nulls":6},"Dary a príspevky",{"v":100,"d":"100 EUR"},{"v":125,"d":"125 EUR"},{"v":-25,"d":"-25 EUR"}]
[null,null,"Príjem 2",{"v":1000,"d":"1,000 EUR"}]
[null,null,"Osobitné príjmy",{"v":2500,"d":"2,500 EUR"},{"$nulls":6},"Deti",{"v":140,"d":"140 EUR"},{"v":140,"d":"140 EUR"},{"v":0,"d":"0 EUR"}]
[null,null,"Celkové príjmy",{"$f":"SUM(D14:D16)","v":{"v":9500,"d":"9,500 EUR"}}]
[{"$nulls":10},"Domáce zvieratá",{"v":170,"d":"170 EUR"},{"v":100,"d":"100 EUR"},{"v":70,"d":"70 EUR"}]
[]
[{"$nulls":10},"Doprava",{"v":1425,"d":"1,425 EUR"},{"v":1375,"d":"1,375 EUR"},{"v":50,"d":"50 EUR"}]
[]
[{"$nulls":10},"Osobná starostlivosť",{"v":150,"d":"150 EUR"},{"v":140,"d":"140 EUR"},{"v":10,"d":"10 EUR"}]
[]
[{"$nulls":10},"Poistenie",{"v":900,"d":"900 EUR"},{"v":900,"d":"900 EUR"},{"v":0,"d":"0 EUR"}]
[]
[{"$nulls":10},"Pôžičky",{"v":200,"d":"200 EUR"},{"v":200,"d":"200 EUR"},{"v":0,"d":"0 EUR"}]
[]
[{"$nulls":10},"Úspory alebo investície",{"v":200,"d":"200 EUR"},{"v":200,"d":"200 EUR"},{"v":0,"d":"0 EUR"}]
[]
[{"$nulls":10},"Zábava",{"v":400,"d":"400 EUR"},{"v":358,"d":"358 EUR"},{"v":42,"d":"42 EUR"}]
[]
[{"$nulls":10},"Jedlo",{"v":1100,"d":"1,100 EUR"},{"v":1320,"d":"1,320 EUR"},{"v":-220,"d":"-220 EUR"}]
[]
[{"$nulls":10},"Celkový súčet",{"v":7915,"d":"7,915 EUR"},{"v":7860,"d":"7,860 EUR"},{"v":55,"d":"55 EUR"}]

{"sheet":"Mesačné výdavky","index":1,"n_rows":62,"n_cols":7,"rows_kept":62}
[null,"Mesačné výdavky"]
[null,"Popis","Kategória","Predpokladané náklady","Skutočné náklady","Rozdiel","Prehľad skutočných nákladov"]
[null,"Mimoškolské aktivity","Deti",{"v":40,"d":"40 EUR"},{"v":40,"d":"40 EUR"},{"$f":"PodrobnostiRozpočtu[[#This Row],[Predpokladané náklady]]-PodrobnostiRozpočtu[[#This Row],[Skutočné náklady]]","v":{"v":0,"d":"0 EUR"}},{"$f":"PodrobnostiRozpočtu[[#This Row],[Skutočné náklady]]","v":{"v":40,"d":"40 EUR"}}]
[null,"Lieky","Deti",null,null,{"$f":"PodrobnostiRozpočtu[[#This Row],[Predpokladané náklady]]-PodrobnostiRozpočtu[[#This Row],[Skutočné náklady]]","v":{"v":0,"d":"0 EUR"}},{"$f":"PodrobnostiRozpočtu[[#This Row],[Skutočné náklady]]","v":{"v":0,"d":"0 EUR"}}]
[null,"Školské pomôcky","Deti",null,null,{"$f":"PodrobnostiRozpočtu[[#This Row],[Predpokladané náklady]]-PodrobnostiRozpočtu[[#This Row],[Skutočné náklady]]","v":{"v":0,"d":"0 EUR"}},{"$f":"PodrobnostiRozpočtu[[#This Row],[Skutočné náklady]]","v":{"v":0,"d":"0 EUR"}}]
[null,"Školné","Deti",{"v":100,"d":"100 EUR"},{"v":100,"d":"100 EUR"},{"$f":"PodrobnostiRozpočtu[[#This Row],[Predpokladané náklady]]-PodrobnostiRozpočtu[[#This Row],[Skutočné náklady]]","v":{"v":0,"d":"0 EUR"}},{"$f":"PodrobnostiRozpočtu[[#This Row],[Skutočné náklady]]","v":{"v":100,"d":"100 EUR"}}]
[null,"Koncerty","Zábava",{"v":50,"d":"50 EUR"},{"v":40,"d":"40 EUR"},{"$f":"PodrobnostiRozpočtu[[#This Row],[Predpokladané náklady]]-PodrobnostiRozpočtu[[#This Row],[Skutočné náklady]]","v":{"v":10,"d":"10 EUR"}},{"$f":"PodrobnostiRozpočtu[[#This Row],[Skutočné náklady]]","v":{"v":40,"d":"40 EUR"}}]
[null,"Divadlo","Zábava",{"v":200,"d":"200 EUR"},{"v":150,"d":"150 EUR"},{"$f":"PodrobnostiRozpočtu[[#This Row],[Predpokladané náklady]]-PodrobnostiRozpočtu[[#This Row],[Skutočné náklady]]","v":{"v":50,"d":"50 EUR"}},{"$f":"PodrobnostiRozpočtu[[#This Row],[Skutočné náklady]]","v":{"v":150,"d":"150 EUR"}}]
[null,"Filmy","Zábava",{"v":50,"d":"50 EUR"},{"v":28,"d":"28 EUR"},{"$f":"PodrobnostiRozpočtu[[#This Row],[Predpokladané náklady]]-PodrobnostiRozpočtu[[#This Row],[Skutočné náklady]]","v":{"v":22,"d":"22 EUR"}},{"$f":"PodrobnostiRozpočtu[[#This Row],[Skutočné náklady]]","v":{"v":28,"d":"28 EUR"}}]
[null,"Hudba (CD, stiahnuté súbory atď.)","Zábava",{"v":50,"d":"50 EUR"},{"v":30,"d":"30 EUR"},{"$f":"PodrobnostiRozpočtu[[#This Row],[Predpokladané náklady]]-PodrobnostiRozpočtu[[#This Row],[Skutočné náklady]]","v":{"v":20,"d":"20 EUR"}},{"$f":"PodrobnostiRozpočtu[[#This Row],[Skutočné náklady]]","v":{"v":30,"d":"30 EUR"}}]
[null,"Športové podujatia","Zábava",{"v":0,"d":"0 EUR"},{"v":40,"d":"40 EUR"},{"$f":"PodrobnostiRozpočtu[[#This Row],[Predpokladané náklady]]-PodrobnostiRozpočtu[[#This Row],[Skutočné náklady]]","v":{"v":-40,"d":"-40 EUR"}},{"$f":"PodrobnostiRozpočtu[[#This Row],[Skutočné náklady]]","v":{"v":40,"d":"40 EUR"}}]
[null,"Video/DVD (kúpa)","Zábava",{"v":20,"d":"20 EUR"},{"v":50,"d":"50 EUR"},{"$f":"PodrobnostiRozpočtu[[#This Row],[Predpokladané náklady]]-PodrobnostiRozpočtu[[#This Row],[Skutočné náklady]]","v":{"v":-30,"d":"-30 EUR"}},{"$f":"PodrobnostiRozpočtu[[#This Row],[Skutočné náklady]]","v":{"v":50,"d":"50 EUR"}}]
[null,"Video/DVD (výpožičky)","Zábava",{"v":30,"d":"30 EUR"},{"v":20,"d":"20 EUR"},{"$f":"PodrobnostiRozpočtu[[#This Row],[Predpokladané náklady]]-PodrobnostiRozpočtu[[#This Row],[Skutočné náklady]]","v":{"v":10,"d":"10 EUR"}},{"$f":"PodrobnostiRozpočtu[[#This Row],[Skutočné náklady]]","v":{"v":20,"d":"20 EUR"}}]
[null,"Reštaurácie","Jedlo",{"v":1000,"d":"1,000 EUR"},{"v":1200,"d":"1,200 EUR"},{"$f":"PodrobnostiRozpočtu[[#This Row],[Predpokladané náklady]]-PodrobnostiRozpočtu[[#This Row],[Skutočné náklady]]","v":{"v":-200,"d":"-200 EUR"}},{"$f":"PodrobnostiRozpočtu[[#This Row],[Skutočné náklady]]","v":{"v":1200,"d":"1,200 EUR"}}]
[null,"Potraviny","Jedlo",{"v":100,"d":"100 EUR"},{"v":120,"d":"120 EUR"},{"$f":"PodrobnostiRozpočtu[[#This Row],[Predpokladané náklady]]-PodrobnostiRozpočtu[[#This Row],[Skutočné náklady]]","v":{"v":-20,"d":"-20 EUR"}},{"$f":"PodrobnostiRozpočtu[[#This Row],[Skutočné náklady]]","v":{"v":120,"d":"120 EUR"}}]
[null,"Charita 1","Dary a príspevky",{"v":75,"d":"75 EUR"},{"v":100,"d":"100 EUR"},{"$f":"PodrobnostiRozpočtu[[#This Row],[Predpokladané náklady]]-PodrobnostiRozpočtu[[#This Row],[Skutočné náklady]]","v":{"v":-25,"d":"-25 EUR"}},{"$f":"PodrobnostiRozpočtu[[#This Row],[Skutočné náklady]]","v":{"v":100,"d":"100 EUR"}}]
[null,"Charita 2","Dary a príspevky",{"v":25,"d":"25 EUR"},{"v":25,"d":"25 EUR"},{"$f":"PodrobnostiRozpočtu[[#This Row],[Predpokladané náklady]]-PodrobnostiRozpočtu[[#This Row],[Skutočné náklady]]","v":{"v":0,"d":"0 EUR"}},{"$f":"PodrobnostiRozpočtu[[#This Row],[Skutočné náklady]]","v":{"v":25,"d":"25 EUR"}}]
[null,"Dar 1","Dary a príspevky",null,null,{"$f":"PodrobnostiRozpočtu[[#This Row],[Predpokladané náklady]]-PodrobnostiRozpočtu[[#This Row],[Skutočné náklady]]","v":{"v":0,"d":"0 EUR"}},{"$f":"PodrobnostiRozpočtu[[#This Row],[Skutočné náklady]]","v":{"v":0,"d":"0 EUR"}}]
[null,"Dar 2","Dary a príspevky",null,null,{"$f":"PodrobnostiRozpočtu[[#This Row],[Predpokladané náklady]]-PodrobnostiRozpočtu[[#This Row],[Skutočné náklady]]","v":{"v":0,"d":"0 EUR"}},{"$f":"PodrobnostiRozpočtu[[#This Row],[Skutočné náklady]]","v":{"v":0,"d":"0 EUR"}}]
[null,"Káblová/satelitná televízia","Bývanie",{"v":100,"d":"100 EUR"},{"v":100,"d":"100 EUR"},{"$f":"PodrobnostiRozpočtu[[#This Row],[Predpokladané náklady]]-PodrobnostiRozpočtu[[#This Row],[Skutočné náklady]]","v":{"v":0,"d":"0 EUR"}},{"$f":"PodrobnostiRozpočtu[[#This Row],[Skutočné náklady]]","v":{"v":100,"d":"100 EUR"}}]
[null,"Elektrina","Bývanie",{"v":45,"d":"45 EUR"},{"v":50,"d":"50 EUR"},{"$f":"PodrobnostiRozpočtu[[#This Row],[Predpokladané náklady]]-PodrobnostiRozpočtu[[#This Row],[Skutočné náklady]]","v":{"v":-5,"d":"-5 EUR"}},{"$f":"PodrobnostiRozpočtu[[#This Row],[Skutočné náklady]]","v":{"v":50,"d":"50 EUR"}}]
[null,"Plyn","Bývanie",{"v":300,"d":"300 EUR"},{"v":400,"d":"400 EUR"},{"$f":"PodrobnostiRozpočtu[[#This Row],[Predpokladané náklady]]-PodrobnostiRozpočtu[[#This Row],[Skutočné náklady]]","v":{"v":-100,"d":"-100 EUR"}},{"$f":"PodrobnostiRozpočtu[[#This Row],[Skutočné náklady]]","v":{"v":400,"d":"400 EUR"}}]
[null,"Upratovacie služby","Bývanie",{"v":200,"d":"200 EUR"},null,{"$f":"PodrobnostiRozpočtu[[#This Row],[Predpokladané náklady]]-PodrobnostiRozpočtu[[#This Row],[Skutočné náklady]]","v":{"v":200,"d":"200 EUR"}},{"$f":"PodrobnostiRozpočtu[[#This Row],[Skutočné náklady]]","v":{"v":0,"d":"0 EUR"}}]
[null,"Údržba","Bývanie",{"v":200,"d":"200 EUR"},{"v":150,"d":"150 EUR"},{"$f":"PodrobnostiRozpočtu[[#This Row],[Predpokladané náklady]]-PodrobnostiRozpočtu[[#This Row],[Skutočné náklady]]","v":{"v":50,"d":"50 EUR"}},{"$f":"PodrobnostiRozpočtu[[#This Row],[Skutočné náklady]]","v":{"v":150,"d":"150 EUR"}}]
[null,"Hypotéka alebo nájomné","Bývanie",{"v":1700,"d":"1,700 EUR"},{"v":1700,"d":"1,700 EUR"},{"$f":"PodrobnostiRozpočtu[[#This Row],[Predpokladané náklady]]-PodrobnostiRozpočtu[[#This Row],[Skutočné náklady]]","v":{"v":0,"d":"0 EUR"}},{"$f":"PodrobnostiRozpočtu[[#This Row],[Skutočné náklady]]","v":{"v":1700,"d":"1,700 EUR"}}]
[null,"Zemný plyn/vykurovací olej","Bývanie",null,null,{"$f":"PodrobnostiRozpočtu[[#This Row],[Predpokladané náklady]]-PodrobnostiRozpočtu[[#This Row],[Skutočné náklady]]","v":{"v":0,"d":"0 EUR"}},{"$f":"PodrobnostiRozpočtu[[#This Row],[Skutočné náklady]]","v":{"v":0,"d":"0 EUR"}}]
[null,"Internet","Bývanie",{"v":100,"d":"100 EUR"},{"v":100,"d":"100 EUR"},{"$f":"PodrobnostiRozpočtu[[#This Row],[Predpokladané náklady]]-PodrobnostiRozpočtu[[#This Row],[Skutočné náklady]]","v":{"v":0,"d":"0 EUR"}},{"$f":"PodrobnostiRozpočtu[[#This Row],[Skutočné náklady]]","v":{"v":100,"d":"100 EUR"}}]
[null,"Telefón (mobil)","Bývanie",{"v":60,"d":"60 EUR"},{"v":60,"d":"60 EUR"},{"$f":"PodrobnostiRozpočtu[[#This Row],[Predpokladané náklady]]-PodrobnostiRozpočtu[[#This Row],[Skutočné náklady]]","v":{"v":0,"d":"0 EUR"}},{"$f":"PodrobnostiRozpočtu[[#This Row],[Skutočné náklady]]","v":{"v":60,"d":"60 EUR"}}]
[null,"Telefón (pevná linka)","Bývanie",{"v":35,"d":"35 EUR"},{"v":39,"d":"39 EUR"},{"$f":"PodrobnostiRozpočtu[[#This Row],[Predpokladané náklady]]-PodrobnostiRozpočtu[[#This Row],[Skutočné náklady]]","v":{"v":-4,"d":"-4 EUR"}},{"$f":"PodrobnostiRozpočtu[[#This Row],[Skutočné náklady]]","v":{"v":39,"d":"39 EUR"}}]
[null,"Jednorazové potreby","Bývanie",{"v":40,"d":"40 EUR"},{"v":55,"d":"55 EUR"},{"$f":"PodrobnostiRozpočtu[[#This Row],[Predpokladané náklady]]-PodrobnostiRozpočtu[[#This Row],[Skutočné náklady]]","v":{"v":-15,"d":"-15 EUR"}},{"$f":"PodrobnostiRozpočtu[[#This Row],[Skutočné náklady]]","v":{"v":55,"d":"55 EUR"}}]
[null,"Odvoz a recyklácia odpadu","Bývanie",{"v":25,"d":"25 EUR"},{"v":22,"d":"22 EUR"},{"$f":"PodrobnostiRozpočtu[[#This Row],[Predpokladané náklady]]-PodrobnostiRozpočtu[[#This Row],[Skutočné náklady]]","v":{"v":3,"d":"3 EUR"}},{"$f":"PodrobnostiRozpočtu[[#This Row],[Skutočné náklady]]","v":{"v":22,"d":"22 EUR"}}]
[null,"Vodné a stočné","Bývanie",{"v":25,"d":"25 EUR"},{"v":26,"d":"26 EUR"},{"$f":"PodrobnostiRozpočtu[[#This Row],[Predpokladané náklady]]-PodrobnostiRozpočtu[[#This Row],[Skutočné náklady]]","v":{"v":-1,"d":"-1 EUR"}},{"$f":"PodrobnostiRozpočtu[[#This Row],[Skutočné náklady]]","v":{"v":26,"d":"26 EUR"}}]
[null,"Zdravie","Poistenie",{"v":400,"d":"400 EUR"},{"v":400,"d":"400 EUR"},{"$f":"PodrobnostiRozpočtu[[#This Row],[Predpokladané náklady]]-PodrobnostiRozpočtu[[#This Row],[Skutočné náklady]]","v":{"v":0,"d":"0 EUR"}},{"$f":"PodrobnostiRozpočtu[[#This Row],[Skutočné náklady]]","v":{"v":400,"d":"400 EUR"}}]
[null,"Domácnosť","Poistenie",{"v":400,"d":"400 EUR"},{"v":400,"d":"400 EUR"},{"$f":"PodrobnostiRozpočtu[[#This Row],[Predpokladané náklady]]-PodrobnostiRozpočtu[[#This Row],[Skutočné náklady]]","v":{"v":0,"d":"0 EUR"}},{"$f":"PodrobnostiRozpočtu[[#This Row],[Skutočné náklady]]","v":{"v":400,"d":"400 EUR"}}]
[null,"Život","Poistenie",{"v":100,"d":"100 EUR"},{"v":100,"d":"100 EUR"},{"$f":"PodrobnostiRozpočtu[[#This Row],[Predpokladané náklady]]-PodrobnostiRozpočtu[[#This Row],[Skutočné náklady]]","v":{"v":0,"d":"0 EUR"}},{"$f":"PodrobnostiRozpočtu[[#This Row],[Skutočné náklady]]","v":{"v":100,"d":"100 EUR"}}]
[null,"Kreditná karta 1","Pôžičky",{"v":200,"d":"200 EUR"},{"v":200,"d":"200 EUR"},{"$f":"PodrobnostiRozpočtu[[#This Row],[Predpokladané náklady]]-PodrobnostiRozpočtu[[#This Row],[Skutočné náklady]]","v":{"v":0,"d":"0 EUR"}},{"$f":"PodrobnostiRozpočtu[[#This Row],[Skutočné náklady]]","v":{"v":200,"d":"200 EUR"}}]
[null,"Kreditná karta 2","Pôžičky",null,null,{"$f":"PodrobnostiRozpočtu[[#This Row],[Predpokladané náklady]]-PodrobnostiRozpočtu[[#This Row],[Skutočné náklady]]","v":{"v":0,"d":"0 EUR"}},{"$f":"PodrobnostiRozpočtu[[#This Row],[Skutočné náklady]]","v":{"v":0,"d":"0 EUR"}}]
[null,"Kreditná karta 3","Pôžičky",null,null,{"$f":"PodrobnostiRozpočtu[[#This Row],[Predpokladané náklady]]-PodrobnostiRozpočtu[[#This Row],[Skutočné náklady]]","v":{"v":0,"d":"0 EUR"}},{"$f":"PodrobnostiRozpočtu[[#This Row],[Skutočné náklady]]","v":{"v":0,"d":"0 EUR"}}]
[null,"Osobné","Pôžičky",null,null,{"$f":"PodrobnostiRozpočtu[[#This Row],[Predpokladané náklady]]-PodrobnostiRozpočtu[[#This Row],[Skutočné náklady]]","v":{"v":0,"d":"0 EUR"}},{"$f":"PodrobnostiRozpočtu[[#This Row],[Skutočné náklady]]","v":{"v":0,"d":"0 EUR"}}]
[null,"Študentské","Pôžičky",null,null,{"$f":"PodrobnostiRozpočtu[[#This Row],[Predpokladané náklady]]-PodrobnostiRozpočtu[[#This Row],[Skutočné náklady]]","v":{"v":0,"d":"0 EUR"}},{"$f":"PodrobnostiRozpočtu[[#This Row],[Skutočné náklady]]","v":{"v":0,"d":"0 EUR"}}]
[null,"Oblečenie","Osobná starostlivosť",{"v":150,"d":"150 EUR"},{"v":140,"d":"140 EUR"},{"$f":"PodrobnostiRozpočtu[[#This Row],[Predpokladané náklady]]-PodrobnostiRozpočtu[[#This Row],[Skutočné náklady]]","v":{"v":10,"d":"10 EUR"}},{"$f":"PodrobnostiRozpočtu[[#This Row],[Skutočné náklady]]","v":{"v":140,"d":"140 EUR"}}]
[null,"Čistiareň","Osobná starostlivosť",null,null,{"$f":"PodrobnostiRozpočtu[[#This Row],[Predpokladané náklady]]-PodrobnostiRozpočtu[[#This Row],[Skutočné náklady]]","v":{"v":0,"d":"0 EUR"}},{"$f":"PodrobnostiRozpočtu[[#This Row],[Skutočné náklady]]","v":{"v":0,"d":"0 EUR"}}]
[null,"Kaderníctvo a manikúra","Osobná starostlivosť",null,null,{"$f":"PodrobnostiRozpočtu[[#This Row],[Predpokladané náklady]]-PodrobnostiRozpočtu[[#This Row],[Skutočné náklady]]","v":{"v":0,"d":"0 EUR"}},{"$f":"PodrobnostiRozpočtu[[#This Row],[Skutočné náklady]]","v":{"v":0,"d":"0 EUR"}}]
[null,"Zdravotný klub","Osobná starostlivosť",null,null,{"$f":"PodrobnostiRozpočtu[[#This Row],[Predpokladané náklady]]-PodrobnostiRozpočtu[[#This Row],[Skutočné náklady]]","v":{"v":0,"d":"0 EUR"}},{"$f":"PodrobnostiRozpočtu[[#This Row],[Skutočné náklady]]","v":{"v":0,"d":"0 EUR"}}]
[null,"Lieky","Osobná starostlivosť",null,null,{"$f":"PodrobnostiRozpočtu[[#This Row],[Predpokladané náklady]]-PodrobnostiRozpočtu[[#This Row],[Skutočné náklady]]","v":{"v":0,"d":"0 EUR"}},{"$f":"PodrobnostiRozpočtu[[#This Row],[Skutočné náklady]]","v":{"v":0,"d":"0 EUR"}}]
[null,"Potraviny","Domáce zvieratá",{"v":150,"d":"150 EUR"},{"v":75,"d":"75 EUR"},{"$f":"PodrobnostiRozpočtu[[#This Row],[Predpokladané náklady]]-PodrobnostiRozpočtu[[#This Row],[Skutočné náklady]]","v":{"v":75,"d":"75 EUR"}},{"$f":"PodrobnostiRozpočtu[[#This Row],[Skutočné náklady]]","v":{"v":75,"d":"75 EUR"}}]
[null,"Starostlivosť o výzor","Domáce zvieratá",{"v":20,"d":"20 EUR"},{"v":25,"d":"25 EUR"},{"$f":"PodrobnostiRozpočtu[[#This Row],[Predpokladané náklady]]-PodrobnostiRozpočtu[[#This Row],[Skutočné náklady]]","v":{"v":-5,"d":"-5 EUR"}},{"$f":"PodrobnostiRozpočtu[[#This Row],[Skutočné náklady]]","v":{"v":25,"d":"25 EUR"}}]
[null,"Zdravie","Domáce zvieratá",null,null,{"$f":"PodrobnostiRozpočtu[[#This Row],[Predpokladané náklady]]-PodrobnostiRozpočtu[[#This Row],[Skutočné náklady]]","v":{"v":0,"d":"0 EUR"}},{"$f":"PodrobnostiRozpočtu[[#This Row],[Skutočné náklady]]","v":{"v":0,"d":"0 EUR"}}]
[null,"Hračky","Domáce zvieratá",null,null,{"$f":"PodrobnostiRozpočtu[[#This Row],[Predpokladané náklady]]-PodrobnostiRozpočtu[[#This Row],[Skutočné náklady]]","v":{"v":0,"d":"0 EUR"}},{"$f":"PodrobnostiRozpočtu[[#This Row],[Skutočné náklady]]","v":{"v":0,"d":"0 EUR"}}]
[null,"Investičný účet","Úspory alebo investície",{"v":200,"d":"200 EUR"},{"v":200,"d":"200 EUR"},{"$f":"PodrobnostiRozpočtu[[#This Row],[Predpokladané náklady]]-PodrobnostiRozpočtu[[#This Row],[Skutočné náklady]]","v":{"v":0,"d":"0 EUR"}},{"$f":"PodrobnostiRozpočtu[[#This Row],[Skutočné náklady]]","v":{"v":200,"d":"200 EUR"}}]
[null,"Dôchodkový účet","Úspory alebo investície",null,null,{"$f":"PodrobnostiRozpočtu[[#This Row],[Predpokladané náklady]]-PodrobnostiRozpočtu[[#This Row],[Skutočné náklady]]","v":{"v":0,"d":"0 EUR"}},{"$f":"PodrobnostiRozpočtu[[#This Row],[Skutočné náklady]]","v":{"v":0,"d":"0 EUR"}}]
[null,"Celoštátne","Dane",{"v":300,"d":"300 EUR"},{"v":300,"d":"300 EUR"},{"$f":"PodrobnostiRozpočtu[[#This Row],[Predpokladané náklady]]-PodrobnostiRozpočtu[[#This Row],[Skutočné náklady]]","v":{"v":0,"d":"0 EUR"}},{"$f":"PodrobnostiRozpočtu[[#This Row],[Skutočné náklady]]","v":{"v":300,"d":"300 EUR"}}]
[null,"Miestne","Dane",null,null,{"$f":"PodrobnostiRozpočtu[[#This Row],[Predpokladané náklady]]-PodrobnostiRozpočtu[[#This Row],[Skutočné náklady]]","v":{"v":0,"d":"0 EUR"}},{"$f":"PodrobnostiRozpočtu[[#This Row],[Skutočné náklady]]","v":{"v":0,"d":"0 EUR"}}]
[null,"Štátne","Dane",null,null,{"$f":"PodrobnostiRozpočtu[[#This Row],[Predpokladané náklady]]-PodrobnostiRozpočtu[[#This Row],[Skutočné náklady]]","v":{"v":0,"d":"0 EUR"}},{"$f":"PodrobnostiRozpočtu[[#This Row],[Skutočné náklady]]","v":{"v":0,"d":"0 EUR"}}]
[null,"Cestovné za autobus alebo taxi","Doprava",{"v":100,"d":"100 EUR"},{"v":150,"d":"150 EUR"},{"$f":"PodrobnostiRozpočtu[[#This Row],[Predpokladané náklady]]-PodrobnostiRozpočtu[[#This Row],[Skutočné náklady]]","v":{"v":-50,"d":"-50 EUR"}},{"$f":"PodrobnostiRozpočtu[[#This Row],[Skutočné náklady]]","v":{"v":150,"d":"150 EUR"}}]
[null,"Pohonné hmoty","Doprava",{"v":450,"d":"450 EUR"},{"v":400,"d":"400 EUR"},{"$f":"PodrobnostiRozpočtu[[#This Row],[Predpokladané náklady]]-PodrobnostiRozpočtu[[#This Row],[Skutočné náklady]]","v":{"v":50,"d":"50 EUR"}},{"$f":"PodrobnostiRozpočtu[[#This Row],[Skutočné náklady]]","v":{"v":400,"d":"400 EUR"}}]
[null,"Poistenie","Doprava",{"v":300,"d":"300 EUR"},{"v":300,"d":"300 EUR"},{"$f":"PodrobnostiRozpočtu[[#This Row],[Predpokladané náklady]]-PodrobnostiRozpočtu[[#This Row],[Skutočné náklady]]","v":{"v":0,"d":"0 EUR"}},{"$f":"PodrobnostiRozpočtu[[#This Row],[Skutočné náklady]]","v":{"v":300,"d":"300 EUR"}}]
[null,"Úradné poplatky ","Doprava",{"v":25,"d":"25 EUR"},{"v":25,"d":"25 EUR"},{"$f":"PodrobnostiRozpočtu[[#This Row],[Predpokladané náklady]]-PodrobnostiRozpočtu[[#This Row],[Skutočné náklady]]","v":{"v":0,"d":"0 EUR"}},{"$f":"PodrobnostiRozpočtu[[#This Row],[Skutočné náklady]]","v":{"v":25,"d":"25 EUR"}}]
[null,"Údržba","Doprava",{"v":100,"d":"100 EUR"},{"v":50,"d":"50 EUR"},{"$f":"PodrobnostiRozpočtu[[#This Row],[Predpokladané náklady]]-PodrobnostiRozpočtu[[#This Row],[Skutočné náklady]]","v":{"v":50,"d":"50 EUR"}},{"$f":"PodrobnostiRozpočtu[[#This Row],[Skutočné náklady]]","v":{"v":50,"d":"50 EUR"}}]
[null,"Parkovacie poplatky","Doprava",null,null,{"$f":"PodrobnostiRozpočtu[[#This Row],[Predpokladané náklady]]-PodrobnostiRozpočtu[[#This Row],[Skutočné náklady]]","v":{"v":0,"d":"0 EUR"}},{"$f":"PodrobnostiRozpočtu[[#This Row],[Skutočné náklady]]","v":{"v":0,"d":"0 EUR"}}]
[null,"Platba za vozidlo","Doprava",{"v":450,"d":"450 EUR"},{"v":450,"d":"450 EUR"},{"$f":"PodrobnostiRozpočtu[[#This Row],[Predpokladané náklady]]-PodrobnostiRozpočtu[[#This Row],[Skutočné náklady]]","v":{"v":0,"d":"0 EUR"}},{"$f":"PodrobnostiRozpočtu[[#This Row],[Skutočné náklady]]","v":{"v":450,"d":"450 EUR"}}]
[null,"Celková hodnota",null,{"$f":"SUBTOTAL(109,PodrobnostiRozpočtu[Predpokladané náklady])","v":{"v":7915,"d":"7,915 EUR"}},{"$f":"SUBTOTAL(109,PodrobnostiRozpočtu[Skutočné náklady])","v":{"v":7860,"d":"7,860 EUR"}},{"$f":"SUBTOTAL(109,PodrobnostiRozpočtu[Rozdiel])","v":{"v":55,"d":"55 EUR"}}]

{"sheet":"Ďalšie údaje","index":2,"n_rows":15,"n_cols":5,"rows_kept":15}
[null,"Kontingenčná tabuľka pre graf Prehľad rozpočtu",null,null,"Vyhľadávací zoznam pre kategóriu podrobností rozpočtu"]
[null,"Kategória","Náklady",null,"Vyhľadanie kategórie rozpočtu"]
[null,"Bývanie",2702,null,"Deti"]
[null,"Dane",300,null,"Zábava"]
[null,"Dary a príspevky",125,null,"Jedlo"]
[null,"Deti",140,null,"Dary a príspevky"]
[null,"Domáce zvieratá",100,null,"Bývanie"]
[null,"Doprava",1375,null,"Poistenie"]
[null,"Osobná starostlivosť",140,null,"Pôžičky"]
[null,"Poistenie",900,null,"Osobná starostlivosť"]
[null,"Pôžičky",200,null,"Domáce zvieratá"]
[null,"Úspory alebo investície",200,null,"Úspory alebo investície"]
[null,"Zábava",358,null,"Dane"]
[null,"Jedlo",1320,null,"Doprava"]
[null,"Celkový súčet",7860]